bitfinex-derivatives/quotes_ETHF0:USTF0_20250107
["timestamp","ask_amount","ask_price","bid_price","bid_amount"]
[1736287632713,0.29624,3376.4,3376.3,1.355]
[1736287632917,0.29629,3375.9,3375.7,7.88242325]
[1736287633112,0.29629,3375.9,3375.8,1.355]
[1736287635223,3.94843,3376.4,3375.7,0.5176]
[1736287635424,0.2963,3375.8,3375.7,0.5176]
[1736287635614,0.2963,3375.8,3375.7,1.8726]
[1736287635815,0.2963,3375.8,3375.7,1.5763]
[1736287636821,0.2963,3375.8,3375.7,0.2213]
[1736287637022,5.0,3375.8,3374.7,4.5628]
[1736287637317,0.29644,3374.1,3374.0,8.891]
[1736287637517,0.29644,3374.1,3374.0,1.355]
[1736287637717,0.29644,3374.1,3373.7,4.395]
[1736287637718,3.2078,3374.5,3373.1,2.87002325]
[1736287637918,3.2078,3374.5,3373.2,1.355]
[1736287638212,3.2078,3374.5,3373.5,2.87002325]
[1736287638411,0.74108,3374.3,3373.6,1.355]
[1736287638621,0.29648,3373.7,3373.6,1.65148]
[1736287639017,0.29653,3373.1,3372.3,3.2078]
[1736287639224,0.29657,3372.7,3372.6,1.355]
[1736287639419,0.74142,3372.8,3372.0,0.29663]
[1736287639616,3.2078,3373.1,3372.2,2.87002325]
[1736287639824,0.29649,3373.7,3373.4,0.2965]
[1736287640028,0.29649,3373.6,3373.5,1.355]
[1736287640526,2.26785967,3373.8,3373.5,1.355]
[1736287640721,0.29649,3373.6,3373.5,1.355]
[1736287641524,0.29648,3373.8,3373.6,0.29649]
[1736287642020,2.26785967,3374.4,3373.7,3.2078]
[1736287642319,2.56427967,3374.4,3374.2,0.29643]
[1736287642512,2.26785967,3374.4,3374.3,1.65143]
[1736287643615,0.29637,3375.1,3374.8,0.29638]
[1736287643821,3.2078,3375.4,3374.8,0.29638]
[1736287644022,0.29637,3375.0,3374.5,3.2078]
[1736287644225,0.29639,3374.8,3374.5,3.5042]
[1736287644527,0.29638,3374.9,3374.6,0.29639]
[1736287644732,0.29635,3375.2,3374.9,0.29637]
[1736287644923,0.29633,3375.4,3375.2,0.29634]
[1736287645128,0.29633,3375.4,3375.3,1.355]
[1736287646024,2.26785967,3375.8,3375.3,4.5628]
[1736287646231,0.29629,3375.9,3375.5,2.87002325]
[1736287646426,0.29628,3376.0,3375.7,0.2963]
[1736287647035,3.2078,3376.1,3375.3,4.5628]
[1736287647224,0.2963,3375.8,3375.5,0.29631]
[1736287647423,0.29632,3375.6,3375.4,0.29632]
[1736287648123,3.2078,3376.1,3375.3,4.5628]
[1736287648432,3.2078,3376.1,3375.5,2.87002325]
[1736287648726,3.2078,3376.1,3375.7,0.2963]
[1736287648727,0.29628,3376.0,3375.7,0.2963]
[1736287649022,3.00846967,3376.5,3376.3,0.29625]
[1736287649023,2.26785967,3376.5,3376.3,0.29625]
[1736287649222,2.26785967,3376.5,3376.4,0.29624]
[1736287650829,3.2078,3376.8,3376.3,1.355]
[1736287651026,0.29624,3376.4,3376.3,1.355]
[1736287651327,0.29624,3376.5,3376.3,1.65125]
[1736287652129,0.29622,3376.7,3376.4,0.29623]
[1736287652423,3.2078,3376.8,3376.3,1.355]
[1736287652628,0.29623,3376.6,3376.4,0.29624]
[1736287652924,10.11705967,3377.2,3376.3,7.43282325]
[1736287653121,0.2962,3376.9,3376.7,0.29622]
[1736287653322,5.47565967,3377.2,3376.7,6.07782325]
[1736287653527,2.26785967,3377.2,3377.1,6.37400325]
[1736287653832,2.26785967,3377.4,3377.1,7.42582325]
[1736287654019,2.26785967,3377.4,3377.3,0.29616]
[1736287655829,0.29612,3377.9,3377.6,0.29613]
[1736287656020,0.29612,3377.9,3377.1,4.21802325]
[1736287656222,3.2078,3378.2,3377.7,0.29612]
[1736287656522,0.29612,3377.8,3377.6,0.29613]
[1736287656721,3.2078,3378.2,3377.7,0.29612]
[1736287656930,0.29611,3378.0,3377.7,0.29612]
[1736287657226,0.29611,3377.9,3377.7,0.29612]
[1736287657816,0.74018,3378.4,3377.5,2.87002325]
[1736287658021,4.6267,3378.5,3377.5,2.87002325]
[1736287658524,0.2961,3378.0,3377.9,0.2961]
[1736287658726,0.2961,3378.0,3377.9,1.6431]
[1736287659024,0.2961,3378.0,3377.9,1.347]
[1736287659327,5.36688,3378.5,3377.9,1.347]
[1736287659531,0.2961,3378.0,3377.9,1.347]
[1736287661318,0.2961,3378.0,3377.9,1.64311]
[1736287661523,0.2961,3378.0,3377.9,1.347]
[1736287665331,3.2078,3378.2,3377.9,1.347]
[1736287665528,2.26785967,3378.4,3378.3,0.29608]
[1736287665734,2.56392967,3378.5,3378.0,0.74026]
[1736287665935,2.26785967,3378.5,3378.4,0.29607]
[1736287667638,3.2078,3378.7,3377.9,4.21702325]
[1736287667829,0.2961,3378.1,3377.9,4.21702325]
[1736287668031,0.74019,3378.4,3377.9,1.347]
[1736287668229,6.07782325,3378.2,3376.9,3.2078]
[1736287668426,3.2078,3377.6,3376.9,4.5548]
[1736287668635,0.29616,3377.4,3377.3,0.29616]
[1736287668836,0.29616,3377.5,3377.4,0.29615]
[1736287669138,0.29617,3377.3,3377.2,0.29617]
[1736287671133,3.94809,3377.9,3377.0,2.87002325]
[1736287671330,0.74034,3377.7,3377.0,2.87002325]
[1736287671531,0.29617,3377.3,3377.2,0.29617]
[1736287671837,0.29617,3377.3,3377.0,2.87002325]
[1736287672240,0.29617,3377.3,3377.2,0.29617]
[1736287673036,3.2078,3377.9,3377.0,2.87002325]
[1736287673230,0.29613,3377.8,3377.7,0.29612]
[1736287673538,0.29613,3377.8,3377.7,1.64312]
[1736287674432,0.29613,3377.8,3377.7,1.64313]
[1736287674630,2.26785967,3378.4,3377.7,4.5548]
[1736287674830,2.26785967,3378.4,3378.3,3.16610325]
[1736287675134,0.29607,3378.4,3378.3,3.16610325]
[1736287675527,2.26785967,3378.7,3378.1,3.2078]
[1736287675733,0.74013,3378.6,3377.9,2.87002325]
[1736287676039,0.29608,3378.3,3378.2,0.29608]
[1736287676242,0.2961,3378.2,3378.1,0.29609]
[1736287676530,0.2961,3378.2,3377.9,2.87002325]
[1736287676531,0.2961,3378.1,3378.0,0.29609]
[1736287678032,3.9479,3378.8,3377.9,2.87002325]
[1736287678230,3.2078,3378.8,3378.3,2.87002325]
[1736287678638,3.2078,3378.8,3378.1,0.29609]
[1736287678937,0.29609,3378.2,3378.1,0.29609]
[1736287679535,3.2078,3378.8,3378.0,3.2078]
[1736287679730,0.29608,3378.3,3378.2,0.29608]
[1736287680139,3.2078,3378.8,3378.0,3.2078]
[1736287680345,3.2078,3378.4,3378.1,1.347]
[1736287680639,0.29609,3378.2,3378.1,1.347]
[1736287681635,3.2078,3378.9,3378.1,1.347]
[1736287681833,0.29609,3378.3,3378.2,0.29608]
[1736287682440,0.74009,3378.8,3378.1,1.347]
[1736287682640,0.29608,3378.4,3378.3,0.29607]
[1736287683231,0.29609,3378.3,3378.2,0.29608]
[1736287684335,3.2078,3378.5,3377.6,3.2078]
[1736287684535,0.74009,3378.8,3377.0,3.2078]
[1736287684536,3.2078,3377.7,3377.0,3.2078]
[1736287684737,0.29618,3377.1,3377.0,3.2078]
[1736287684942,0.29616,3377.4,3377.3,0.29615]
[1736287686032,0.29613,3377.8,3377.7,0.29611]
[1736287686236,0.29611,3378.0,3377.9,0.2961]
[1736287686437,3.2078,3378.1,3377.7,1.341]
[1736287686438,0.29612,3377.8,3377.7,1.341]
[1736287688140,2.26785967,3377.9,3377.6,0.29613]
[1736287688141,0.29614,3377.7,3377.6,0.29613]
[1736287689643,0.29614,3377.7,3377.6,1.63713]
[1736287689840,2.26785967,3377.8,3377.7,0.29613]
[1736287691548,2.26785967,3378.1,3377.7,0.29613]
[1736287691849,2.26785967,3378.1,3378.0,0.2961]
[1736287692741,2.56394967,3378.1,3378.0,0.2961]
[1736287692945,2.26785967,3378.1,3378.0,0.2961]
[1736287693549,2.26785967,3378.1,3377.6,9.0274]
[1736287693752,0.29612,3377.9,3377.8,0.29611]
[1736287693947,0.29612,3377.9,3377.6,9.0274]
[1736287693948,2.26785967,3378.1,3378.0,0.2961]
[1736287694343,2.26785967,3378.1,3378.0,3.5039]
[1736287696645,3.84863989,3378.2,3378.1,0.29609]
[1736287697856,2.28915371,3378.2,3378.1,0.29609]
[1736287698756,5.68687143,3378.7,3378.1,5.0]
[1736287698957,5.68687143,3378.7,3377.9,5.7400465]
[1736287698958,6.73654316,3379.1,3378.6,6.07782325]
[1736287699144,6.73654316,3379.1,3379.0,0.29601]
[1736287699452,6.73654316,3379.1,3379.0,2.68711153]
[1736287699850,7.03253316,3379.4,3379.0,2.39110153]
[1736287700051,7.03253316,3379.4,3379.3,0.29599]
[1736287700250,6.73654316,3379.4,3379.3,0.29599]
[1736287700450,7.03252316,3379.4,3379.3,0.29599]
[1736287700850,6.73654316,3379.4,3379.3,0.29599]
[1736287701248,0.29597,3379.6,3379.1,6.06669275]
[1736287701450,4.7228,3379.8,3379.1,6.06669275]
[1736287701652,0.29598,3379.4,3379.3,0.29598]
[1736287701854,4.7228,3379.8,3379.5,0.29597]
[1736287702051,0.29597,3379.6,3379.5,0.29597]
[1736287702248,4.7228,3379.8,3379.1,6.06669275]
[1736287702450,0.29597,3379.6,3379.5,0.29597]
[1736287702771,0.29598,3379.5,3379.4,0.29598]
[1736287703153,4.7228,3379.8,3379.1,6.06669275]
[1736287703751,0.29597,3379.6,3379.5,0.29596]
[1736287704058,0.29598,3379.5,3379.4,0.29597]
[1736287704260,0.29598,3379.5,3379.1,6.06669275]
[1736287704458,0.29598,3379.5,3379.4,0.29597]
[1736287704859,4.7228,3379.8,3379.1,6.06669275]
[1736287705351,4.7228,3379.8,3379.3,0.29598]
[1736287705352,0.29599,3379.4,3379.3,0.29598]
[1736287705958,0.73986,3379.9,3379.1,3.2078]
[1736287706153,0.29598,3379.5,3379.4,0.29597]
[1736287706554,8.22164453,3381.8,3381.7,0.29578]
[1736287706754,5.06474947,3382.9,3382.8,0.29568]
[1736287706953,14.97700654,3383.8,3382.8,0.29568]
[1736287706954,14.30799654,3383.8,3383.7,0.2956]
[1736287707164,14.30799654,3383.8,3383.7,6.36229275]
[1736287707460,23.18479654,3383.8,3383.7,3.2078]
[1736287707655,23.18479654,3383.8,3383.7,3.5034]
[1736287707855,8.8768,3383.8,3383.7,5.2090446]
[1736287708361,8.8768,3383.8,3383.5,11.29286834]
[1736287708559,8.8768,3383.6,3383.3,9.20549115]
[1736287708853,8.8768,3383.6,3382.9,11.29286834]
[1736287708854,3.2078,3383.4,3382.9,4.46255949]
[1736287709063,1.34,3383.5,3381.4,4.4845]
[1736287709064,3.2078,3383.0,3381.7,3.2078]
[1736287709255,0.29569,3382.8,3382.3,0.29573]
[1736287709451,0.29576,3382.0,3381.7,3.2078]
[1736287709655,1.94107297,3382.6,3381.3,3.2078]
[1736287709862,2.85889275,3382.3,3381.3,3.2078]
[1736287710153,3.2078,3382.3,3381.7,6.90014348]
[1736287710353,1.395,3382.5,3381.7,10.10794348]
[1736287710756,0.29576,3382.0,3381.7,10.10794348]
[1736287711057,3.2078,3382.3,3381.3,7.80620603]
[1736287711249,0.2958,3381.5,3381.3,7.80620603]
[1736287711656,1.395,3381.7,3381.3,7.80620603]
[1736287711852,0.2958,3381.5,3381.3,3.2078]
[1736287712060,1.395,3381.7,3381.3,3.2078]
[1736287712260,1.395,3381.7,3381.5,0.29579]
[1736287712557,4.5208,3382.3,3382.0,0.29575]
[1736287712757,4.5208,3382.3,3382.0,3.2078]
[1736287712959,0.29574,3382.2,3382.0,3.2078]
[1736287714361,0.29572,3382.4,3382.0,3.50355]
[1736287714556,1.395,3382.5,3382.2,0.29573]
[1736287714756,1.68971,3382.5,3382.2,0.29573]
[1736287715755,1.394,3382.5,3382.2,0.29573]
[1736287715956,0.29573,3382.3,3382.0,3.2078]
[1736287716260,0.29572,3382.4,3382.0,3.50355]
[1736287716561,0.29572,3382.5,3382.0,3.2078]
[1736287716860,0.29572,3382.4,3382.1,0.29574]
[1736287717056,0.29572,3382.4,3382.0,3.2078]
[1736287717057,0.29572,3382.4,3382.0,3.50355]
[1736287717255,0.29574,3382.1,3382.0,3.2078]
[1736287717862,0.29574,3382.2,3382.0,3.2078]
[1736287718060,0.29573,3382.3,3382.0,3.2078]
[1736287718362,0.29572,3382.5,3382.1,0.29574]
[1736287718558,1.394,3382.6,3382.4,3.2078]
[1736287718958,0.29571,3382.5,3382.4,3.2078]
[1736287720957,4.3056,3383.0,3382.8,0.29567]
[1736287721157,4.3056,3383.0,3382.8,3.2078]
[1736287721364,0.29567,3382.9,3382.4,3.2078]
[1736287721564,4.60127,3383.0,3382.8,3.2078]
[1736287722666,0.29567,3382.9,3382.8,3.2078]
[1736287726664,1.394,3383.3,3382.9,0.29567]
[1736287726861,0.29567,3383.0,3382.8,3.50348]
[1736287727464,0.29567,3383.0,3382.9,0.29567]
[1736287727665,1.394,3383.3,3382.9,0.29567]
[1736287727666,0.29566,3383.1,3382.9,0.29567]
[1736287727865,0.29567,3383.0,3382.8,3.50348]
[1736287728066,1.394,3383.3,3382.8,3.2078]
[1736287728270,0.29567,3382.9,3382.8,3.2078]
[1736287728865,5.29567,3382.9,3382.8,1.13380001]
[1736287729065,0.29576,3382.0,3381.9,3.2078]
[1736287729265,1.394,3382.3,3381.9,3.2078]
[1736287729672,0.29575,3382.1,3382.0,0.44093798]
[1736287729962,1.394,3382.3,3381.9,3.2078]
[1736287730161,0.29575,3382.0,3381.9,3.50356]
[1736287730565,0.29575,3382.0,3381.9,3.64874336]
[1736287730772,1.394,3382.3,3381.9,3.64874336]
[1736287730971,0.29575,3382.1,3381.9,3.94449336]
[1736287731171,0.29575,3382.1,3382.0,0.44094336]
[1736287732868,3.1508336,3382.1,3382.0,0.44094336]
[1736287733172,0.2958,3381.4,3381.3,0.29581]
[1736287733373,0.7394,3382.0,3381.1,3.2078]
[1736287733574,0.29581,3381.4,3381.3,0.44191199]
[1736287733763,0.7394,3382.0,3381.2,0.44191199]
[1736287733970,0.2958,3381.6,3381.5,3.2078]
[1736287734268,0.29577,3381.8,3381.5,3.64971199]
[1736287734473,1.394,3381.9,3381.5,3.64971199]
[1736287734474,0.29579,3381.6,3381.5,3.94550199]
[1736287734674,0.29579,3381.6,3381.5,3.50359]
[1736287734874,1.394,3381.9,3381.5,0.44277382]
[1736287735069,0.29579,3381.6,3381.5,0.44277382]
[1736287735975,1.394,3381.9,3381.5,0.44277382]
[1736287736169,0.29578,3381.7,3381.6,0.29578]
[1736287736368,0.29578,3381.7,3381.6,0.73855382]
[1736287736571,0.29578,3381.7,3381.4,3.2078]
[1736287736572,1.394,3381.9,3381.4,3.2078]
[1736287736769,0.2958,3381.5,3381.4,3.2078]
[1736287737177,0.2958,3381.5,3381.4,3.65194884]
[1736287738079,1.394,3381.9,3381.4,3.65194884]
[1736287738378,0.29579,3381.6,3381.5,0.29579]
[1736287738578,0.29579,3381.6,3381.5,0.73993884]
[1736287738973,7.3703836,3382.8,3381.5,0.44414884]
[1736287739172,2.11528,3382.6,3381.5,0.44414884]
[1736287739373,0.29578,3381.8,3381.7,0.29578]
[1736287739678,0.29578,3381.7,3381.6,0.29578]
[1736287739877,1.376,3381.8,3381.6,0.4445284]
[1736287740074,3.50358,3381.7,3381.6,0.4445284]
[1736287740289,3.50358,3381.7,3381.0,4.59840603]
[1736287740290,7.8746,3381.7,3381.0,4.59840603]
[1736287740482,0.29583,3381.1,3381.0,4.59840603]
[1736287740888,0.29585,3380.9,3380.8,0.29585]
[1736287742086,3.5945836,3381.5,3380.6,7.80620603]
[1736287742087,6.0628836,3381.9,3380.6,3.2078]
[1736287742288,0.29584,3381.1,3381.0,0.29583]
[1736287743188,1.376,3381.5,3380.6,3.2078]
[1736287743383,1.376,3381.5,3381.1,0.29583]
[1736287743384,0.29583,3381.2,3381.1,0.29583]
[1736287743584,0.29583,3381.1,3381.0,0.29583]
[1736287743785,1.376,3381.5,3380.6,3.2078]
[1736287743986,0.29583,3381.2,3381.1,0.29582]
[1736287744292,1.376,3381.5,3380.6,8.54588603]
[1736287744489,0.29585,3381.0,3380.9,0.29584]
[1736287744689,0.2958,3381.4,3381.0,0.29583]
[1736287744991,0.29584,3381.1,3381.0,0.29583]
[1736287745192,0.29586,3380.9,3380.8,0.29585]
[1736287745390,0.29584,3381.1,3381.0,0.29583]
[1736287745688,0.29584,3381.1,3380.6,3.94749]
[1736287745689,0.29586,3380.9,3380.8,0.29585]
[1736287746188,1.376,3381.5,3380.6,7.80620603]
[1736287746379,0.29587,3380.7,3380.6,7.80620603]
[1736287746585,1.67187,3380.7,3380.6,7.80620603]
[1736287746781,1.67187,3380.7,3380.6,3.2078]
[1736287748591,3.2078,3381.7,3380.7,0.73967]
[1736287748793,0.7395,3381.5,3380.6,3.2078]
[1736287748995,0.29586,3380.9,3380.8,0.29585]
[1736287749287,0.73953,3381.4,3380.6,3.2078]
[1736287749492,0.29584,3381.0,3380.9,0.29584]
[1736287750491,3.2078,3381.7,3380.6,7.80620603]
[1736287750692,0.29584,3381.1,3381.0,0.29583]
[1736287750886,0.29583,3381.2,3381.1,0.29582]
[1736287751593,0.29581,3381.4,3381.3,0.2958]
[1736287752488,0.29581,3381.4,3381.3,0.29581]
[1736287753088,0.2958,3381.5,3381.4,0.2958]
[1736287753487,0.2958,3381.5,3381.4,3.5036]
[1736287753488,0.29581,3381.5,3381.4,3.5036]
[1736287753795,0.29576,3382.0,3381.9,0.29575]
[1736287753993,1.376,3382.3,3381.9,3.2078]
[1736287754394,0.29575,3382.1,3382.0,0.29575]
[1736287755197,1.376,3382.3,3381.9,3.2078]
[1736287755399,0.29575,3382.0,3381.9,3.50355]
[1736287756104,0.29573,3382.3,3382.2,0.29573]
[1736287756601,0.29573,3382.3,3381.9,3.2078]
[1736287756602,1.376,3382.9,3382.5,0.2957]
[1736287756801,8.37004,3383.2,3382.3,3.2078]
[1736287757098,0.29571,3382.5,3382.4,0.29572]
[1736287757700,1.376,3382.8,3382.3,3.2078]
[1736287757896,0.29569,3382.7,3382.6,0.2957]
[1736287758094,1.67169,3382.8,3382.7,0.29569]
[1736287758295,8.37004,3383.2,3382.3,3.2078]
[1736287758296,0.2957,3382.6,3382.5,0.2957]
[1736287758496,0.2957,3382.7,3382.6,0.2957]
[1736287759001,10.252,3383.1,3382.3,3.2078]
[1736287759203,0.2957,3382.6,3382.5,0.2957]
[1736287759501,0.29569,3382.8,3382.7,0.29569]
[1736287759900,10.252,3383.1,3382.3,3.2078]
[1736287760094,8.876,3383.1,3382.6,0.29569]
[1736287760293,0.29569,3382.7,3382.6,0.29569]
[1736287760690,0.73908,3383.5,3382.3,3.2078]
[1736287760902,0.29567,3383.0,3382.9,0.29567]
[1736287761305,0.29566,3383.1,3383.0,0.29566]
[1736287761502,1.376,3383.3,3382.6,2.8550836]
[1736287761802,0.29567,3383.0,3382.9,0.29567]
[1736287761998,0.29568,3382.9,3382.8,0.29568]
[1736287762708,1.375,3383.4,3382.8,0.29568]
[1736287762709,0.29567,3383.0,3382.8,0.29568]
[1736287762903,1.375,3383.4,3382.8,0.29568]
[1736287763204,0.29567,3382.9,3382.8,0.29568]
[1736287763706,0.29567,3383.0,3382.8,0.29568]
[1736287763906,1.375,3383.4,3382.6,2.8550836]
[1736287764405,0.29564,3383.3,3383.2,0.29564]
[1736287765008,0.29564,3383.3,3383.1,3.2078]
[1736287765009,3.2078,3383.6,3383.1,3.2078]
[1736287765209,0.29562,3383.5,3383.2,0.29565]
[1736287765404,0.29562,3383.5,3383.1,3.2078]
[1736287765405,0.29565,3383.2,3383.1,7.9481]
[1736287765710,0.29565,3383.2,3383.1,3.2078]
[1736287765906,0.73906,3383.5,3382.8,0.29568]
[1736287766106,0.29567,3382.9,3382.8,0.29568]
[1736287768103,0.29567,3383.0,3382.9,0.29567]
[1736287768304,0.73906,3383.5,3382.6,6.0628836]
[1736287768505,0.73906,3383.5,3383.0,3.50346]
[1736287768506,0.29566,3383.1,3383.0,3.50346]
[1736287768704,3.94676,3384.0,3383.0,6.0628836]
[1736287768905,0.29562,3383.5,3383.4,3.50342]
[1736287771021,0.29562,3383.6,3383.5,0.29561]
[1736287771307,0.29562,3383.5,3383.4,3.50343]
[1736287772717,0.2956,3383.9,3383.8,0.29559]
[1736287773718,8.51631,3384.2,3383.5,2.38513543]
[1736287773913,0.2956,3383.7,3383.6,0.29561]
[1736287775809,0.29562,3383.5,3383.4,3.2078]
[1736287776016,1.347,3383.5,3383.0,3.2078]
[1736287776216,0.2957,3382.7,3382.6,3.2078]
[1736287776416,0.2957,3382.7,3382.6,3.5035]
[1736287776823,0.2957,3382.7,3382.6,3.2078]
[1736287777125,0.2957,3382.7,3382.6,3.5035]
[1736287777711,0.2957,3382.7,3382.6,3.2078]
[1736287777911,0.29575,3382.2,3382.1,3.2078]
[1736287778625,3.2078,3382.2,3381.5,4.59840603]
[1736287778811,4.5489,3382.4,3381.5,4.59840603]
[1736287778812,0.29579,3381.6,3381.5,4.59840603]
[1736287779019,1.347,3381.6,3381.0,9.18635344]
[1736287779314,1.347,3381.6,3380.3,3.2078]
[1736287779315,3.2078,3381.3,3380.3,3.2078]
[1736287779519,0.29589,3380.5,3380.4,0.29589]
[1736287779716,0.29589,3380.4,3380.3,3.2078]
[1736287786335,0.2959,3380.3,3380.2,7.6618]
[1736287793141,0.29586,3380.8,3380.7,0.29586]
[1736287793447,3.2078,3381.0,3380.4,2.85346486]
[1736287793645,0.29586,3380.8,3380.7,0.29586]
[1736287794249,0.29586,3380.8,3380.4,2.85346486]
[1736287794250,0.29587,3380.7,3380.6,0.29587]
[1736287794647,0.29586,3380.8,3380.7,0.29586]
[1736287795240,0.29587,3380.7,3380.4,2.85346486]
[1736287795453,0.29587,3380.8,3380.7,0.29586]
[1736287796450,0.29587,3380.7,3380.6,0.29587]
[1736287798048,3.2078,3381.0,3380.4,2.85346486]
[1736287798353,0.29587,3380.7,3380.6,0.29587]
[1736287799652,3.2078,3381.0,3380.4,2.38946149]
[1736287799846,0.29588,3380.5,3380.4,2.68534149]
[1736287800048,3.2078,3381.0,3380.4,2.38946149]
[1736287800341,3.2078,3381.0,3380.2,7.6618]
[1736287800543,0.2959,3380.3,3380.2,7.6618]
[1736287800752,0.2959,3380.3,3380.2,3.2078]
[1736287801253,0.2959,3380.3,3380.2,3.50371]
[1736287804552,0.2959,3380.3,3380.2,3.2078]
[1736287804952,0.2959,3380.3,3380.2,3.50371]
[1736287806763,0.2959,3380.3,3380.2,3.2078]
[1736287808151,0.2959,3380.3,3380.2,3.50371]
[1736287808352,0.29589,3380.4,3380.3,0.2959]
[1736287808557,0.2959,3380.4,3380.3,0.2959]
[1736287809656,0.2959,3380.3,3380.2,3.5037]
[1736287810255,0.2959,3380.3,3380.2,3.2078]
[1736287810450,0.29597,3379.5,3379.4,3.2078]
[1736287810854,0.296,3379.2,3379.1,4.83121]
[1736287811251,0.296,3379.2,3379.1,4.5352]
[1736287811456,0.29601,3379.0,3378.9,3.2078]
[1736287812161,0.29605,3378.6,3378.5,3.2078]
[1736287812755,5.3622,3379.2,3378.5,3.2078]
[1736287812955,0.29605,3378.7,3378.6,0.29605]
[1736287814259,0.29605,3378.6,3378.5,3.50385]
[1736287814456,0.29605,3378.7,3378.6,0.29605]
[1736287815059,0.29605,3378.6,3378.5,3.2078]
[1736287816258,1.341,3378.7,3377.8,3.2078]
[1736287816458,0.29612,3377.9,3377.8,3.2078]
[1736287819459,0.74025,3378.1,3377.4,7.9448]
[1736287819658,0.74025,3378.1,3377.4,8.24095]
[1736287819659,0.29615,3377.5,3377.4,8.24095]
[1736287820062,0.29615,3377.5,3377.4,7.9448]
[1736287820264,0.29615,3377.5,3377.4,8.24096]
[1736287820465,0.29614,3377.6,3377.5,0.29615]
[1736287820667,4.7424,3378.3,3377.4,7.9448]
[1736287820866,4.7652,3378.5,3377.7,3.2078]
[1736287821162,4.7652,3378.5,3377.9,0.2961]
[1736287821363,0.2961,3378.1,3377.9,0.2961]
[1736287821558,0.29608,3378.3,3377.7,3.2078]
[1736287822163,0.29608,3378.3,3378.2,0.29609]
[1736287822875,0.29609,3378.2,3378.1,0.29609]
[1736287823065,4.7652,3378.5,3377.7,3.2078]
[1736287823266,0.2961,3378.0,3377.9,0.29611]
[1736287823462,4.7652,3378.5,3377.7,3.2078]
[1736287823767,0.2961,3378.1,3378.0,0.2961]
[1736287825364,9.4317,3379.2,3378.0,2.86259295]
[1736287825564,0.29601,3379.1,3379.0,0.29601]
[1736287825761,0.296,3379.2,3379.1,0.296]
[1736287825961,0.296,3379.2,3379.1,3.5038]
[1736287827166,0.296,3379.3,3379.2,0.29599]
[1736287827469,0.29594,3379.9,3379.8,0.29594]
[1736287827770,3.67694183,3380.4,3379.7,3.2078]
[1736287827965,4.6505,3380.7,3380.3,3.2078]
[1736287828166,0.29589,3380.5,3380.4,0.29589]
[1736287828366,4.6505,3380.7,3380.3,3.2078]
[1736287828567,0.29589,3380.4,3380.3,3.2078]
[1736287829169,0.29593,3380.0,3379.9,3.2078]
[1736287829360,0.29594,3379.8,3379.7,0.29595]
[1736287829560,0.29594,3379.8,3379.4,12.6185]
[1736287829561,3.94753,3380.5,3379.4,12.6185]
[1736287829874,3.94753,3380.5,3379.8,3.50374]
[1736287829875,0.29594,3379.9,3379.8,3.50374]
[1736287831376,0.29594,3379.9,3379.8,3.2078]
[1736287832373,2.08078,3380.3,3379.4,4.6603]
[1736287832673,1.341,3380.3,3379.4,4.6603]
[1736287832872,0.73981,3380.1,3379.4,4.6603]
[1736287833075,0.29597,3379.6,3379.5,0.29597]
[1736287833566,2.08077,3380.3,3379.4,4.6603]
[1736287833770,0.29592,3380.1,3379.9,0.29593]
[1736287833976,1.341,3380.3,3379.7,3.2078]
[1736287834174,1.341,3380.3,3380.2,0.29591]
[1736287834378,8.9877,3380.8,3380.1,3.50371]
[1736287834379,1.34,3380.6,3380.1,3.50371]
[1736287834680,1.34,3380.6,3380.1,3.2078]
[1736287835265,0.29591,3380.3,3380.2,0.29591]
[1736287835669,0.29589,3380.5,3380.4,0.29589]
[1736287835873,0.29588,3380.6,3380.5,0.29588]
[1736287836274,0.2959,3380.4,3380.3,0.2959]
[1736287836474,0.29591,3380.2,3380.1,3.2078]
[1736287836667,0.29592,3380.1,3380.0,0.29593]
[1736287836872,0.29591,3380.2,3380.1,0.29591]
[1736287837972,5.6925,3380.8,3380.1,3.2078]
[1736287838473,0.29591,3380.2,3380.1,3.2078]
[1736287838975,0.29591,3380.2,3380.1,3.50372]
[1736287840676,0.29591,3380.3,3380.1,3.2078]
[1736287840879,0.29591,3380.3,3380.2,0.2959]
[1736287841777,0.29591,3380.2,3380.1,3.50371]
[1736287845377,0.29591,3380.2,3380.1,3.2078]
[1736287845771,0.29591,3380.2,3380.1,3.50372]
[1736287845977,0.29591,3380.2,3380.1,3.2078]
[1736287846278,0.29591,3380.2,3380.1,3.50372]
[1736287847173,0.29591,3380.2,3380.1,3.2078]
[1736287848068,4.3525,3380.8,3380.1,3.2078]
[1736287848274,2.07959,3381.1,3380.3,2.39055906]
[1736287848573,0.29588,3380.7,3380.6,0.29587]
[1736287848771,0.29588,3380.6,3380.5,0.29588]
[1736287850877,0.73962,3381.0,3380.4,4.4441]
[1736287850878,0.29587,3380.7,3380.6,0.29586]
[1736287851769,0.29587,3380.7,3380.4,9.028]
[1736287851974,0.73962,3381.0,3380.4,9.028]
[1736287851975,0.29588,3380.6,3380.5,0.29588]
[1736287853669,0.29588,3380.6,3380.4,9.028]
[1736287853670,0.29588,3380.5,3380.4,9.32389]
[1736287853983,0.29591,3380.2,3380.1,3.2078]
[1736287854876,0.29594,3379.8,3379.7,3.2078]
[1736287856182,0.29598,3379.4,3379.3,3.2078]
[1736287856385,0.29598,3379.4,3379.3,3.50379]
[1736287857279,2.07977,3380.3,3379.3,3.2078]
[1736287857479,0.29594,3379.9,3379.8,0.29593]
[1736287857674,2.07977,3380.3,3380.0,0.29592]